[Event "Centenary THK University 2019"]
[Site "Ankara"]
[Date "2019.05.19"]
[Round "6"]
[White "Gedik, Ahmet"]
[Black "Onluel, Mert Kaan"]
[Result "0-1"]
[ECO "C60"]
[WhiteElo "1438"]
[BlackElo "1190"]
[Annotator "NA RC"]
[PlyCount "76"]
[EventDate "2019.05.17"]
[EventType "swiss"]
[EventCountry "TUR"]
[SourceTitle "playchess.com"]
[Source "ChessBase"]
[SourceQuality "1"]
[TimeControl "5400+30"]

1. e4 {[%emt 0:32:30]} e5 {[%emt 0:31:30]} 2. Nf3 {[%emt 0:00:30]} Nc6 {[%emt 0:00:30]} 3. Bb5 {[%emt 0:00:30]} Nge7 {[%emt 0:00:00]} 4. c3 {[%emt 0:00:00]} g6 {[%emt 0:00:00]} 5. d3 {[%emt 0:00:00]} Bg7 {[%emt 0:00:30]} 6. Bg5 {[%emt 0:00:30]} O-O {[%emt 0:07:30]} 7. O-O {[%emt 0:00:30]} h6 {[%emt 0:00:30]} 8. Bd2 {[%emt 0:00:30]} d6 {[%emt 0:00:30]} 9. Qc1 {[%emt 0:01:30]} Kh7 {[%emt 0:00:00]} 10. Be3 {[%emt 0:00:00]} f5 {[%emt 0:02:00]} 11. exf5 {[%emt 0:00:00]} Nxf5 {[%emt 0:00:30]} 12. Bd2 {[%emt 0:04:30]} Qf6 {[%emt 0:07:30]} 13. Na3 {[%emt 0:01:30]} Nce7 {[%emt 0:00:30]} 14. Nc2 {[%emt 0:00:30]} c6 {[%emt 0:00:30]} 15. Ba4 {[%emt 0:00:30]} g5 {[%emt 0:06:30]} 16. Ne3 {[%emt 0:00:30]} Ng6 {[%emt 0:01:30]} 17. Bc2 {[%emt 0:00:30]} d5 {[%emt 0:02:30]} 18. Ng4 {[%emt 0:00:30]} Qd6 {[%emt 0:02:30]} 19. h3 {[%emt 0:01:30]} Bd7 {[%emt 0:02:30]} 20. a4 {[%emt 0:02:30]} Kh8 {[%emt 0:01:30]} 21. Ngh2 {[%emt 0:00:30]} Nfh4 {[%emt 0:00:30]} 22. Bd1 {[%emt 0:01:30]} Bf5 {[%emt 0:01:30]} 23. Be2 {[%emt 0:00:30]} Rae8 {[%emt 0:01:30]} 24. Nxh4 {[%emt 0:05:30]} Nxh4 {[%emt 0:00:30]} 25. f3 {[%emt 0:00:30]} Qg6 {[%emt 0:02:30]} 26. Be1 {[%emt 0:00:30]} Rg8 {[%emt 0:02:30]} 27. Qd2 {[%emt 0:01:30]} Bf6 {[%emt 0:02:30]} 28. a5 {[%emt 0:01:30]} Re7 {[%emt 0:02:30]} 29. Ng4 {[%emt 0:00:30]} h5 {[%emt 0:00:30]} 30. Nxf6 {[%emt 0:11:30]} Qxf6 {[%emt 0:00:00]} 31. Ra4 {[%emt 0:02:30]} Ng6 {[%emt 0:01:00]} 32. Bg3 {[%emt 0:04:30]} Nf4 {[%emt 0:00:30]} 33. Kh1 {[%emt 0:01:30]} Qe6 {[%emt 0:00:30]} 34. Bxf4 {[%emt 0:04:30]} gxf4 {[%emt 0:00:30]} 35. Bd1 {[%emt 0:00:00]} Reg7 {[%emt 0:01:30]} 36. Rf2 {[%emt 0:01:00]} Bxh3 {[%emt 0:00:30]} 37. Bc2 {[%emt 0:01:30]} Bxg2+ {[%emt 0:00:30]} 38. Rxg2 {[%emt 0:00:30]} Qh3+ {[%emt 0:00:30]} 0-1

[Event "Centenary THK University 2019"]
[Site "Ankara"]
[Date "2019.05.19"]
[Round "6"]
[White "Sonmez, Yusuf"]
[Black "Demir, Onder"]
[Result "0-1"]
[ECO "B26"]
[WhiteElo "1329"]
[BlackElo "1428"]
[Annotator "NA RC"]
[PlyCount "70"]
[EventDate "2019.05.17"]
[EventType "swiss"]
[EventCountry "TUR"]
[SourceTitle "playchess.com"]
[Source "ChessBase"]
[SourceQuality "1"]
[TimeControl "5400+30"]

1. e4 {[%emt 0:34:30]} c5 {[%emt 0:30:30]} 2. Nc3 {[%emt 0:00:00]} Nc6 {[%emt 0:00:30]} 3. g3 {[%emt 0:00:00]} g6 {[%emt 0:00:00]} 4. Bg2 {[%emt 0:00:00]} Bg7 {[%emt 0:00:00]} 5. Nge2 {[%emt 0:00:00]} d6 {[%emt 0:00:00]} 6. d3 {[%emt 0:03:30]} e6 {[%emt 0:00:00]} 7. Be3 {[%emt 0:00:30]} Nge7 {[%emt 0:00:30]} 8. Qd2 {[%emt 0:00:30]} a6 {[%emt 0:00:30]} 9. Bh6 {[%emt 0:00:00]} O-O {[%emt 0:00:00]} 10. h4 {[%emt 0:00:00]} b5 {[%emt 0:00:00]} 11. h5 {[%emt 0:00:00]} b4 {[%emt 0:00:30]} 12. Nd1 {[%emt 0:00:00]} f6 {[%emt 0:10:30]} 13. hxg6 {[%emt 0:00:30]} hxg6 {[%emt 0:02:30]} 14. Bxg7 {[%emt 0:00:30]} Kxg7 {[%emt 0:00:00]} 15. Qh6+ {[%emt 0:00:00]} Kf7 {[%emt 0:00:00]} 16. Qh7+ {[%emt 0:01:00]} Ke8 {[%emt 0:00:00]} 17. Nf4 {[%emt 0:03:30]} Rf7 {[%emt 0:03:00]} 18. Qh8+ {[%emt 0:03:30]} Kd7 {[%emt 0:01:30]} 19. Qh3 {[%emt 0:13:30]} f5 {[%emt 0:02:30]} 20. exf5 {[%emt 0:00:30]} exf5 {[%emt 0:01:30]} 21. Bxc6+ {[%emt 0:02:30]} Kxc6 {[%emt 0:02:30]} 22. Qg2+ {[%emt 0:00:30]} d5 {[%emt 0:00:30]} 23. Rh6 {[%emt 0:03:30]} Rf6 {[%emt 0:03:30]} 24. Ne3 {[%emt 0:02:30]} Bb7 {[%emt 0:04:30]} 25. c4 {[%emt 0:02:30]} bxc3 {[%emt 0:00:30]} 26. bxc3 {[%emt 0:00:30]} Kc7 {[%emt 0:09:30]} 27. Rb1 {[%emt 0:00:30]} Rb8 {[%emt 0:01:30]} 28. Rxb7+ {[%emt 0:02:30]} Rxb7 {[%emt 0:11:26]} 29. Nfxd5+ {[%emt 0:00:30]} Kb8 {[%emt 0:03:26]} 30. Nxf6 {[%emt 0:01:30]} Qxd3 {[%emt 0:00:39]} 31. Rh8+ {[%emt 0:01:30]} Ka7 {[%emt 0:00:08]} 32. Nd1 {[%emt 0:03:30]} Qd6 {[%emt 0:02:17]} 33. Ne8 {[%emt 0:04:52]} Qe5+ {[%emt 0:00:29]} 34. Kd2 {[%emt 0:02:33]} Qxh8 {[%emt 0:00:12]} 35. Nd6 {[%emt 0:00:00]} Rd7 {[%emt 0:00:40]} 0-1

[Event "Centenary THK University 2019"]
[Site "Ankara"]
[Date "2019.05.19"]
[Round "6"]
[White "Muti, Erol"]
[Black "Sozen, Abdullah"]
[Result "0-1"]
[ECO "E21"]
[WhiteElo "1270"]
[BlackElo "1420"]
[Annotator "NA RC"]
[PlyCount "104"]
[EventDate "2019.05.17"]
[EventType "swiss"]
[EventCountry "TUR"]
[SourceTitle "playchess.com"]
[Source "ChessBase"]
[SourceQuality "1"]
[TimeControl "5400+30"]

1. d4 {[%emt 0:33:30]} Nf6 {[%emt 0:30:30]} 2. c4 {[%emt 0:00:30]} e6 {[%emt 0:00:00]} 3. Nc3 {[%emt 0:00:30]} Bb4 {[%emt 0:00:00]} 4. Bd2 {[%emt 0:00:00]} O-O {[%emt 0:00:00]} 5. Nf3 {[%emt 0:00:00]} d6 {[%emt 0:01:00]} 6. e3 {[%emt 0:00:30]} Nc6 {[%emt 0:00:00]} 7. Bd3 {[%emt 0:00:30]} e5 {[%emt 0:00:00]} 8. O-O {[%emt 0:01:30]} Bxc3 {[%emt 0:00:30]} 9. dxe5 {[%emt 0:02:30]} Bxe5 {[%emt 0:00:30]} 10. Nxe5 {[%emt 0:00:30]} dxe5 {[%emt 0:00:30]} 11. Qc2 {[%emt 0:01:30]} Qe7 {[%emt 0:00:30]} 12. a3 {[%emt 0:00:30]} e4 {[%emt 0:00:30]} 13. Be2 {[%emt 0:00:30]} Bg4 {[%emt 0:00:30]} 14. Bc3 {[%emt 0:00:30]} Bxe2 {[%emt 0:00:00]} 15. Qxe2 {[%emt 0:00:30]} Rad8 {[%emt 0:00:00]} 16. Rad1 {[%emt 0:00:00]} Rxd1 {[%emt 0:01:30]} 17. Rxd1 {[%emt 0:00:00]} Rd8 {[%emt 0:00:00]} 18. h3 {[%emt 0:00:30]} Rxd1+ {[%emt 0:00:00]} 19. Qxd1 {[%emt 0:00:30]} Qd7 {[%emt 0:00:30]} 20. Qxd7 {[%emt 0:04:30]} Nxd7 {[%emt 0:00:30]} 21. b4 {[%emt 0:00:00]} Nce5 {[%emt 0:00:30]} 22. c5 {[%emt 0:00:00]} c6 {[%emt 0:00:00]} 23. Kf1 {[%emt 0:01:30]} Nc4 {[%emt 0:00:00]} 24. a4 {[%emt 0:00:30]} a6 {[%emt 0:01:30]} 25. Ke2 {[%emt 0:00:30]} f5 {[%emt 0:00:00]} 26. g4 {[%emt 0:00:00]} g6 {[%emt 0:00:00]} 27. f3 {[%emt 0:00:00]} Kf7 {[%emt 0:00:30]} 28. g5 {[%emt 0:04:30]} Ke6 {[%emt 0:00:30]} 29. f4 {[%emt 0:00:30]} Kd5 {[%emt 0:00:00]} 30. a5 {[%emt 0:01:30]} Na3 {[%emt 0:00:00]} 31. Kd1 {[%emt 0:02:30]} Kc4 {[%emt 0:00:30]} 32. Be1 {[%emt 0:01:30]} Nb5 {[%emt 0:00:00]} 33. Kc2 {[%emt 0:00:30]} Nf8 {[%emt 0:00:00]} 34. Bd2 {[%emt 0:00:30]} Ne6 {[%emt 0:00:30]} 35. h4 {[%emt 0:00:30]} Nec7 {[%emt 0:00:30]} 36. Kb2 {[%emt 0:07:30]} Nd5 {[%emt 0:00:00]} 37. Kc2 {[%emt 0:04:30]} Nxb4+ {[%emt 0:00:00]} 38. Kb2 {[%emt 0:00:30]} Nd3+ {[%emt 0:00:30]} 39. Ka2 {[%emt 0:00:30]} Nxc5 {[%emt 0:00:00]} 40. Kb2 {[%emt 0:00:30]} Nd3+ {[%emt 0:05:00]} 41. Kc2 {[%emt 0:05:30]} Na3+ {[%emt 0:00:30]} 42. Kd1 {[%emt 0:00:30]} Kb3 {[%emt 0:00:00]} 43. Ke2 {[%emt 0:00:00]} Nb1 {[%emt 0:00:00]} 44. Be1 {[%emt 0:01:00]} Nxe1 {[%emt 0:00:30]} 45. Kxe1 {[%emt 0:00:00]} c5 {[%emt 0:00:30]} 46. Kd1 {[%emt 0:00:00]} Nc3+ {[%emt 0:00:30]} 47. Kd2 {[%emt 0:00:00]} c4 {[%emt 0:00:00]} 48. Ke1 {[%emt 0:01:00]} Kc2 {[%emt 0:00:00]} 49. Kf2 {[%emt 0:00:00]} Kd2 {[%emt 0:00:30]} 50. Kg3 {[%emt 0:01:00]} Kxe3 {[%emt 0:00:00]} 51. h5 {[%emt 0:07:30]} Ne2+ {[%emt 0:00:00]} 52. Kh4 {[%emt 0:00:30]} c3 {[%emt 0:00:30]} 0-1

[Event "Centenary THK University 2019"]
[Site "Ankara"]
[Date "2019.05.19"]
[Round "6"]
[White "Bicaklioglu, Dilara"]
[Black "Oktem, Ege Tuna"]
[Result "0-1"]
[ECO "C89"]
[WhiteElo "1217"]
[BlackElo "1235"]
[Annotator "NA RC"]
[PlyCount "100"]
[EventDate "2019.05.17"]
[EventType "swiss"]
[EventCountry "TUR"]
[SourceTitle "playchess.com"]
[Source "ChessBase"]
[SourceQuality "1"]
[TimeControl "5400+30"]

1. e4 {[%emt 0:32:30]} e5 {[%emt 0:30:30]} 2. Nf3 {[%emt 0:00:00]} Nc6 {[%emt 0:00:30]} 3. Bb5 {[%emt 0:00:00]} a6 {[%emt 0:00:30]} 4. Ba4 {[%emt 0:00:00]} Nf6 {[%emt 0:00:00]} 5. O-O {[%emt 0:00:00]} Be7 {[%emt 0:00:00]} 6. Re1 {[%emt 0:00:30]} b5 {[%emt 0:00:30]} 7. Bb3 {[%emt 0:00:00]} O-O {[%emt 0:00:00]} 8. c3 {[%emt 0:00:00]} d5 {[%emt 0:00:00]} 9. exd5 {[%emt 0:00:30]} Nxd5 {[%emt 0:00:00]} 10. Nxe5 {[%emt 0:00:30]} Nxe5 {[%emt 0:00:00]} 11. Rxe5 {[%emt 0:00:30]} c6 {[%emt 0:00:30]} 12. Bxd5 {[%emt 0:00:30]} cxd5 {[%emt 0:00:00]} 13. d4 {[%emt 0:02:30]} Bd6 {[%emt 0:00:00]} 14. Re1 {[%emt 0:00:30]} Qh4 {[%emt 0:00:30]} 15. g3 {[%emt 0:01:30]} Qh3 {[%emt 0:00:00]} 16. Qf3 {[%emt 0:01:30]} Bg4 {[%emt 0:00:00]} 17. Qxd5 {[%emt 0:00:30]} Rad8 {[%emt 0:00:30]} 18. Qg2 {[%emt 0:01:30]} Qh5 {[%emt 0:00:30]} 19. Be3 {[%emt 0:01:30]} f5 {[%emt 0:01:30]} 20. Nd2 {[%emt 0:03:30]} f4 {[%emt 0:00:30]} 21. Bxf4 {[%emt 0:01:30]} Bxf4 {[%emt 0:00:30]} 22. gxf4 {[%emt 0:00:30]} Rxf4 {[%emt 0:00:30]} 23. Re3 {[%emt 0:02:30]} Rdf8 {[%emt 0:00:30]} 24. Rf1 {[%emt 0:02:30]} Be2 {[%emt 0:00:30]} 25. Re5 {[%emt 0:03:30]} Bxf1 {[%emt 0:01:30]} 26. Qd5+ {[%emt 0:00:00]} Qf7 {[%emt 0:00:00]} 27. Nxf1 {[%emt 0:03:00]} Rxf2 {[%emt 0:01:00]} 28. Qxf7+ {[%emt 0:00:30]} R2xf7 {[%emt 0:00:30]} 29. Re2 {[%emt 0:00:30]} Rxf1+ {[%emt 0:00:30]} 30. Kg2 {[%emt 0:00:00]} R1f6 {[%emt 0:00:00]} 31. b3 {[%emt 0:01:00]} Rg6+ {[%emt 0:00:00]} 32. Kh3 {[%emt 0:00:30]} Rf3+ {[%emt 0:00:00]} 33. Kh4 {[%emt 0:00:30]} Rxc3 {[%emt 0:00:00]} 34. Rd2 {[%emt 0:00:30]} Rcc6 {[%emt 0:00:00]} 35. d5 {[%emt 0:00:30]} Rcd6 {[%emt 0:00:00]} 36. a4 {[%emt 0:00:30]} Rge6 {[%emt 0:00:30]} 37. axb5 {[%emt 0:01:30]} axb5 {[%emt 0:00:30]} 38. dxe6 {[%emt 0:00:30]} Rxd2 {[%emt 0:00:30]} 39. Kg4 {[%emt 0:00:30]} Rxh2 {[%emt 0:00:00]} 40. Kf5 {[%emt 0:00:30]} Kf8 {[%emt 0:00:00]} 41. Ke5 {[%emt 0:00:30]} Ke7 {[%emt 0:00:30]} 42. Kd5 {[%emt 0:00:30]} Rb2 {[%emt 0:00:00]} 43. b4 {[%emt 0:00:30]} Rxb4 {[%emt 0:00:00]} 44. Ke5 {[%emt 0:00:00]} h5 {[%emt 0:00:30]} 45. Kf5 {[%emt 0:00:00]} h4 {[%emt 0:00:00]} 46. Ke5 {[%emt 0:00:00]} h3 {[%emt 0:00:00]} 47. Kf5 {[%emt 0:00:00]} h2 {[%emt 0:00:00]} 48. Ke5 {[%emt 0:00:30]} h1=Q {[%emt 0:00:00]} 49. Kf5 {[%emt 0:00:00]} Qe4+ {[%emt 0:00:00]} 50. Kg5 {[%emt 0:00:00]} Qg4# {[%emt 0:00:00]} 0-1